Cogmind - Beta 11.1 @@@ ROGUE MODE // 2022.11.18 @ 13:56:13 Player: darki Result: Destroyed by P-70 Sage with High-powered Shock Rifle Performance ------------- Evolutions (3) 1500 Regions Visited (7) 1400 Robots Destroyed (55) 275 Value Destroyed (2095) 2095 Prototype IDs (26) 520 Alien Tech Used (0) 0 Bonus (1101) 1101 TOTAL SCORE: 6891 Bonus ------- High Alert Combat Kills 56 Follower Combat Kills 45 Entered Garrisons 200 Used RIF Installer 500 Aligned with FarCom 300 Cogmind --------- Core Integrity 0/700 Matter 168/300 Energy 148/150 System Corruption 1% Temperature Cool (60) Movement Rolling (130) Ox2 Location -7/Factory Parts ------- > --- POWER (1) -------- Micro Nuclear Core > --- PROPULSION (3) --- Compact Wheel Compact Wheel > --- UTILITY (6) ------ Improved Heat Sink High-capacity Storage Unit Advanced Targeting Computer Improved Light Armor Plating Improved Medium Armor Plating Relay Coupler [Sentry] (14) > --- WEAPON (3) ------- Plasma Cannon Heavy Ion Cannon Gauss Rifle > --- INVENTORY (20) --- High-capacity Matter Pod (200) Compact Matter Pod (150) Relay Coupler [Sentry] (22) Relay Coupler [Sentry] (18) Heavy Rocket Launcher Rocket Array Remote Datajack Hammer Heavy Hammer Peak State ------------ > --- POWER ------------ Improved Deuterium Engine > --- PROPULSION ------- Improved Carbon-fiber Leg Armored Huge Wheel > --- UTILITY ---------- Improved Heat Sink Improved Heat Sink Medium Storage Unit Hardened Medium Armor Plating Improved Medium Armor Plating Relay Coupler [Sentry] > --- WEAPON ----------- Heavy Laser Gauss Rifle Flak Gun > --- INVENTORY -------- High-capacity Matter Pod Compact Matter Pod Compact Matter Pod Relay Coupler [Sentry] Relay Coupler [Sentry] EM Pulse Cannon Grenade Launcher Improved Grenade Launcher Rocket Array Remote Datajack [Rating: 49] Favorites ----------- Power Light Nuclear Core Engine Reinforced Ion Engine Power Core Light Nuclear Core Propulsion Aluminum Leg Treads Light Treads Leg Aluminum Leg Wheel Compact Wheel Utility Medium Storage Unit Device Trap Reconfigurator Storage Medium Storage Unit Processor Targeting Computer Hackware Relay Coupler [Sentry] Protection Insulated Plating Weapon Improved Assault Rifle Energy Gun Heavy Laser Energy Cannon Light EM Pulse Cannon Ballistic Gun Improved Assault Rifle Launcher Grenade Launcher Special Weapon Remote Datajack Impact Weapon Heavy Hammer Slashing Weapon Segregator Build | -11 -10 -10 -10 -9 -8 -8 -7 ------- Run | Scr Mat Min Exi Min Mat Gar Fac Slots Evolved 6 | . . . . . 4 . 2 Power . | . . . . . . . . Propulsion 1 | . . . . . 1 . . Utility 4 | . . . . . 2 . 2 Weapon 1 | . . . . . 1 . . Parts Attached 103 | . 5 2 1 . 16 33 46 Power 8 | . 1 1 . . 1 2 3 Engine 5 | . 1 . . . 1 2 1 Core 3 | . . 1 . . . . 2 Reactor . | . . . . . . . . Propulsion 27 | . . . . . 8 11 8 Treads 11 | . . . . . 5 6 . Leg 13 | . . . . . 3 5 5 Wheel 3 | . . . . . . . 3 Hover . | . . . . . . . . Flight . | . . . . . . . . Utility 28 | . 1 1 1 . 2 5 18 Device 6 | . . . 1 . 1 1 3 Storage 2 | . . 1 . . . . 1 Processor 2 | . 1 . . . . . 1 Hackware 4 | . . . . . . . 4 Protection 14 | . . . . . 1 4 9 Artifact . | . . . . . . . . Weapon 40 | . 3 . . . 5 15 17 Energy Gun 1 | . . . . . . . 1 Energy Cannon 8 | . . . . . 2 3 3 Ballistic Gun 10 | . 3 . . . 2 . 5 Ballistic Cannon . | . . . . . . . . Launcher 9 | . . . . . . 7 2 Special Weapon 5 | . . . . . 1 1 3 Impact Weapon 3 | . . . . . . . 3 Slashing Weapon 4 | . . . . . . 4 . Piercing Weapon . | . . . . . . . . Special Melee Weapon . | . . . . . . . . Unidentified Prototypes 3 | . 1 . . . . . 2 Parts Lost 32 | . . . . . 2 14 16 Power 3 | . . . . . . 1 2 Propulsion 9 | . . . . . 2 4 3 Utility 10 | . . . . . . 3 7 Weapon 10 | . . . . . . 6 4 Highest Loss Streak 8 | . . . . . 1 7 8 To Critical Strikes . | . . . . . . . . Average Slot Usage (%) 87 | . 93 99 100 100 86 75 80 Engine 3 | . 14 1 . . 6 6 3 Core 4 | . . 12 14 14 2 . . Treads 2 | . . . . . 5 10 . Leg 18 | . 28 28 28 28 16 10 11 Wheel 2 | . . . . . . . 6 Device 7 | . . . 7 14 18 10 6 Storage 10 | . 14 14 14 14 9 9 6 Processor 4 | . 7 14 6 . . . . Hackware 3 | . . . . . . . 10 Protection 5 | . . . . . . 9 11 Energy Gun 1 | . 2 . . . . . 2 Ballistic Gun 14 | . 25 28 28 28 17 1 4 Launcher 3 | . . . . . . 12 4 Special Weapon 2 | . . . . . 9 1 3 Impact Weapon 1 | . . . . . . . 4 Naked Turns . | . . . . . . . . Heaviest Build 76 | 14 16 21 22 22 39 39 76 Greatest Support 60 | 20 20 20 20 20 60 60 46 Greatest Overweight (x) 7 | . . 1 1 1 2 7 4 Average Overweight (x) . | . . . 1 1 . . . Largest Inventory Capacity 20 | . 8 10 10 10 10 10 20 Average Capacity 10 | . 8 8 10 10 10 10 11 Most Carried 10 | . 8 10 10 10 10 10 10 Average Carried 8 | . 6 8 9 10 9 8 9 Final Capacity 20 | 8 8 10 10 10 10 10 20 Final Carried 10 | 6 8 9 10 10 10 9 9 Class Distribution -------------------- 52% | Mutant 14% | Bothacker-Mutant 10% | Scavenger-Skirmisher 10% | Scavenger-Mutant 4% | Scavenger-Tank 4% | Bothacker-Skirmisher Dominant Class ---------------- Mutant | -10/Materials Mutant | -10/Mines Mutant | -10/Exiles Mutant | -9/Mines Scavenger-Skirmisher | -8/Materials Scavenger-Mutant | -8/Garrison Bothacker-Mutant | -7/Factory Resources | -11 -10 -10 -10 -9 -8 -8 -7 ----------- Run | Scr Mat Min Exi Min Mat Gar Fac Matter Collected 1973 | 200 41 244 20 . 212 440 816 Remotely . | . . . . . . . . Salvage Created 1628 | . 41 345 . . 270 386 586 Parts 101 | . 4 26 . . 7 34 30 Haulers Intercepted . | . . . . . . . . Recyclers Shooed 1 | . . . . . . . 1 Parts Field Recycled . | . . . . . . . . Retrieved Matter . | . . . . . . . . Parts Self-Destructed . | . . . . . . . . Prevented . | . . . . . . . . Kills | -11 -10 -10 -10 -9 -8 -8 -7 ------- Run | Scr Mat Min Exi Min Mat Gar Fac Combat Hostiles Destroyed 51 | . 1 11 . . 6 21 12 Melee 2 | . . . . . . 1 1 Guns 28 | . 1 11 . . 5 2 9 Cannons 3 | . . . . . 1 2 . AOE 16 | . . . . . . 16 . Classes Destroyed 12 | . 1 3 . . 1 4 3 Worker 1 | . . . . . . . 1 Builder 1 | . . 1 . . . . . Tunneler 1 | . . 1 . . . . . Recycler 1 | . . . . . . . 1 Swarmer 17 | . . 6 . . . 7 4 Saboteur 5 | . . . . . . 5 . Grunt 17 | . 1 5 . . 5 5 1 Brawler 2 | . . . . . . 2 . Duelist 3 | . . . . . . 1 2 Sentry 2 | . . . . . 1 . 1 Hunter 3 | . . . . . . 1 2 Programmer 2 | . . . . . . . 2 Best Kill Streak 6 | . 1 3 . . 2 6 5 Combat Bots Only 6 | . 1 3 . . 2 6 5 Max Kills in Single Turn 6 | . 1 1 . . 1 6 1 Gunslinging . | . . . . . . . . Exploded 6 | . . . . . . 6 . Melee 1 | . . . . . . 1 1 Uniques/NPCs Destroyed . | . . . . . . . . Combat | -11 -10 -10 -10 -9 -8 -8 -7 -------- Run | Scr Mat Min Exi Min Mat Gar Fac Damage Taken 4767 | . 31 238 . . 343 1353 2802 Core 1033 | . 10 15 . . 81 207 720 Absorbed by Shields . | . . . . . . . . Redirected to Shielding 79 | . . . . . . 79 . Core Remaining (%) 79 | 100 . . . 90 . 47 . Volleys Fired 125 | . 6 27 . . 17 22 53 Largest 3 | . 2 2 . . 3 3 3 Hottest 173 | . 70 46 . . 126 126 173 Shots Fired 247 | . 12 54 . . 49 45 87 Gun 173 | . 12 54 . . 34 4 69 Cannon 14 | . . . . . . 12 2 Launcher 27 | . . . . . . 27 . Special 33 | . . . . . 15 2 16 Kinetic 151 | . 11 54 . . 34 4 48 Thermal 41 | . 1 . . . 15 2 23 Explosive 27 | . . . . . . 27 . Electromagnetic 12 | . . . . . . 12 . Robot Hit Streak 20 | . 6 13 . . 18 20 17 Robot Miss Streak 4 | . 3 4 . . 1 2 3 Penetration Max . | . . . . . . . . Secondary Targets . | . . . . . . . . Shots Hit Robots 181 | . 7 39 . . 36 19 80 Core Hits 99 | . 2 17 . . 18 33 29 Critical Kills 1 | . . . . . 1 . . Critical Parts Destroyed 2 | . . 2 . . . . . Critical Strikes 8 | . . 2 . . 3 . 3 Burn 5 | . . . . . 2 . 3 Destroy 3 | . . 2 . . 1 . . Melee Attacks 39 | . . . . . . 14 25 Thermal 14 | . . . . . . 14 . Impact 25 | . . . . . . . 25 Slashing . | . . . . . . . . Piercing . | . . . . . . . . Sneak Attacks 4 | . . . . . . . 4 Combat Hostiles . | . . . . . . . . Follow-up Attacks . | . . . . . . . . Damage Inflicted 4793 | . 90 606 . . 526 1830 1741 Guns 2076 | . 90 606 . . 416 29 935 Cannons 276 | . . . . . . 212 64 Explosions 1561 | . . . . . . 1561 . Melee 739 | . . . . . . . 739 Ramming 21 | . . . . . . 18 3 Kinetic 1781 | . 90 606 . . 416 29 640 Thermal 479 | . . . . . 110 10 359 Explosive 1561 | . . . . . . 1561 . Electromagnetic 212 | . . . . . . 212 . Impact 739 | . . . . . . . 739 Slashing . | . . . . . . . . Piercing . | . . . . . . . . Highest Corruption . | . . . . . . . . Average Corruption . | . . . . . . . . Corruption Purged . | . . . . . . . . Corruption Blocked . | . . . . . . . . Overload Shots . | . . . . . . . . Overflow Damage 241 | . . . . . . 74 167 Projectiles . | . . . . . . . . Explosions 74 | . . . . . . 74 . Melee 167 | . . . . . . . 167 Knockbacks 2 | . . . . . . . 2 Impact 2 | . . . . . . . 2 Kinetic . | . . . . . . . . Secondary . | . . . . . . . . Self-Inflicted Damage 148 | . . . . . . 148 . Shots 7 | . . . . . . 7 . Rammed 10 | . . . . . . 10 . Targets Rammed 12 | . . . . . . 11 1 Kicked 1 | . . . . . . . 1 Crushed 1 | . . . . . . 1 . Highest Temperature 232 | . 9 39 . . 20 84 232 Average Temperature 63 | . 6 19 . . 4 23 99 Received Heat Transfer 1008 | . 18 108 . . 234 522 126 Siege Activations . | . . . . . . . . Robots Corrupted . | . . . . . . . . Combat Hostiles . | . . . . . . . . Parts Fried 3 | . . . . . . 1 2 Impact Corruptions 7 | . . . . . . . 7 Robots Melted . | . . . . . . . . Combat Hostiles . | . . . . . . . . Parts Melted 2 | . . . . . 1 . 1 Heat Transferred 2064 | . . . . . 1120 80 864 Parts Sabotaged 11 | . . . . . . 11 . Parts Stolen . | . . . . . . . . Parts Stripped . | . . . . . . . . Power Chain Reactions . | . . . . . . . . Missiles Intercepted . | . . . . . . . . Alert | -11 -10 -10 -10 -9 -8 -8 -7 ------- Run | Scr Mat Min Exi Min Mat Gar Fac Peak Influence 710 | . 52 164 . . 131 710 387 Initial 372 | . . 19 . . . . 372 Average 151 | . 16 56 . . 60 314 197 Maximum Alert Level 3 | . . . . . . 3 1 Low Security (%) 71 | . 100 100 . 100 100 41 54 Level 1 22 | . . . . . . 24 45 Level 2 5 | . . . . . . 30 . Level 3 . | . . . . . . 2 . Level 4 . | . . . . . . . . Level 5 . | . . . . . . . . High Security . | . . . . . . . . Max Security . | . . . . . . . . Squads Dispatched 5 | . 1 . . . . . 4 Investigation . | . . . . . . . . Extermination 2 | . . . . . . . 2 Reinforcement 2 | . 1 . . . . . 1 Assault 1 | . . . . . . . 1 Garrison . | . . . . . . . . Intercept . | . . . . . . . . Searches Triggered . | . . . . . . . . Construction Impeded . | . . . . . . . . Haulers Reinforced . | . . . . . . . . Active Scanning Responses . | . . . . . . . . Cargo Convoy Interrupts . | . . . . . . . . Stealth | -11 -10 -10 -10 -9 -8 -8 -7 --------- Run | Scr Mat Min Exi Min Mat Gar Fac Distress Signals 3 | . . . . . 1 . 2 Communications Jammed . | . . . . . . . . Distress Signals . | . . . . . . . . Times Spotted 73 | . 3 13 . . 8 23 26 Peak Tracking Total 7 | . 2 3 . . 5 7 6 Tactical Retreats 3 | . . 1 . . . 1 1 Traps | -11 -10 -10 -10 -9 -8 -8 -7 ------- Run | Scr Mat Min Exi Min Mat Gar Fac Traps Triggered 4 | . 1 . . . . 1 2 Indirectly . | . . . . . . . . Trap Hack Attempts . | . . . . . . . . Triggered . | . . . . . . . . Disarmed . | . . . . . . . . Reprogrammed . | . . . . . . . . Reused 2 | . . . . . . 2 . Traps Reconfigurated 4 | . . . . . 1 3 . Traps Extracted . | . . . . . . . . Installed . | . . . . . . . . Triggered 2 | . . . . . . 2 . Exploded 1 | . . . . . . . 1 Machines | -11 -10 -10 -10 -9 -8 -8 -7 ---------- Run | Scr Mat Min Exi Min Mat Gar Fac Machines Disabled 3 | . . 1 . . . 2 . Max in Single Turn 1 | . . 1 . . . 1 . Garrison Access 1 | . . . . . . . 1 Garrison Relay 2 | . . . . . . 2 . Machines Sabotaged . | . . . . . . . . Garrisons Compromised . | . . . . . . . . Overloaded Fab Kills . | . . . . . . . . Hacking | -11 -10 -10 -10 -9 -8 -8 -7 --------- Run | Scr Mat Min Exi Min Mat Gar Fac Machines Accessed 8 | . 1 1 2 1 1 . 2 Terminals 4 | . 1 1 . 1 . . 1 Fabricators . | . . . . . . . . Repair Stations . | . . . . . . . . Recycling Units . | . . . . . . . . Scanalyzers . | . . . . . . . . Garrison Access 2 | . . . . . 1 . 1 Total Hacks 41 | . 3 5 24 3 1 . 5 Successful 34 | . 2 2 24 1 1 . 4 Failed 7 | . 1 3 . 2 . . 1 Catastrophic 1 | . . 1 . . . . . Database Lockouts . | . . . . . . . . Manual 13 | . 1 5 1 3 . . 3 Terminals 13 | . 3 5 . 3 . . 2 Fabricators . | . . . . . . . . Repair Stations . | . . . . . . . . Recycling Units . | . . . . . . . . Scanalyzers . | . . . . . . . . Garrison Access 4 | . . . . . 1 . 3 Terminal Hacks 27 | . 1 2 24 . . . . Record 23 | . . . 23 . . . . Branch Access Points 1 | . 1 . . . . . . Unreport Threat 2 | . . 2 . . . . . EX-Prototype ID Bank 1 | . . . 1 . . . . Fabricator Hacks . | . . . . . . . . Repair Station Hacks . | . . . . . . . . Recycling Unit Hacks . | . . . . . . . . Scanalyzer . | . . . . . . . . Garrison Access Hacks 3 | . . . . . 1 . 2 Unlock Access 2 | . . . . . 1 . 1 Coupler Status 1 | . . . . . . . 1 Unauthorized Hacks 4 | . 1 . . 1 . . 2 Terminals 3 | . 1 . . 1 . . 1 Botnet 3 | . 1 . . 1 . . 1 Fabricators . | . . . . . . . . Repair Stations . | . . . . . . . . Recycling Units . | . . . . . . . . Scanalyzers . | . . . . . . . . Garrison Access 1 | . . . . . . . 1 Restock 1 | . . . . . . . 1 Data Cores Recovered . | . . . . . . . . Used . | . . . . . . . . Hacking Detections 5 | . 1 1 . 1 . . 2 Full Trace Events . | . . . . . . . . Feedback Events . | . . . . . . . . Feedback Blocked . | . . . . . . . . Robot Schematics Acquired . | . . . . . . . . Robots Built . | . . . . . . . . Authchips . | . . . . . . . . Time . | . . . . . . . . Total Robot Build Rating . | . . . . . . . . Part Schematics Acquired . | . . . . . . . . Parts Built . | . . . . . . . . Authchips . | . . . . . . . . Time . | . . . . . . . . Total Part Build Rating . | . . . . . . . . Parts Repaired . | . . . . . . . . Time . | . . . . . . . . Parts Recycled . | . . . . . . . . Recycled Matter . | . . . . . . . . Retrieved Matter . | . . . . . . . . Retrieved Components . | . . . . . . . . Parts Scanalyzed . | . . . . . . . . Part Schematics Acquired . | . . . . . . . . Parts Damaged . | . . . . . . . . Bothacking | -11 -10 -10 -10 -9 -8 -8 -7 ------------ Run | Scr Mat Min Exi Min Mat Gar Fac Used RIF Installer 1 | . . . . . . 1 . Robots Hacked 6 | . . . . . . . 6 Non-combat 4 | . . . . . . . 4 Combat 2 | . . . . . . . 2 Robot Hacks Applied 9 | . . . . . . . 9 parse_system 2 | . . . . . . . 2 purge_threat 1 | . . . . . . . 1 locate_traps 1 | . . . . . . . 1 relay_feed 2 | . . . . . . . 2 go_dormant 1 | . . . . . . . 1 overwrite_iff 1 | . . . . . . . 1 formatsys_high 1 | . . . . . . . 1 Relay Couplers Released 10 | . . . . . . 7 3 Machine Destruction 7 | . . . . . . 7 . Programmers 3 | . . . . . . . 3 Attached 3 | . . . . . . . 3 Fabnet Peak Effective % . | . . . . . . . . Robots Rewired 1 | . . . . . 1 . . Allies Hacked . | . . . . . . . . Hacks Repelled . | . . . . . . . . Allies | -11 -10 -10 -10 -9 -8 -8 -7 -------- Run | Scr Mat Min Exi Min Mat Gar Fac Total Allies 2 | . . . . . 1 . 1 Largest Group 1 | . . . . . . . 1 Highest-Rated Group 32 | . . . . . . . 32 Highest-Rated Ally 32 | . . . . . . . 32 Total Orders . | . . . . . . . . Ally Attacks 3 | . . . . . 1 . 2 Total Damage 109 | . . . . . 17 . 92 Kills 1 | . . . . . . . 1 Allies Corrupted . | . . . . . . . . Allies Melted . | . . . . . . . . Intel | -11 -10 -10 -10 -9 -8 -8 -7 ------- Run | Scr Mat Min Exi Min Mat Gar Fac Robot Analysis Total . | . . . . . . . . Derelict Logs Recovered 1 | . . 1 . . . . . Drone Launches . | . . . . . . . . Drone Recoveries . | . . . . . . . . Exploration | -11 -10 -10 -10 -9 -8 -8 -7 ------------- Run | Scr Mat Min Exi Min Mat Gar Fac Turns Passed 4867 | . 332 937 500 214 422 798 1664 Spaces Moved 2512 | 1 234 607 262 97 132 319 860 Core 9 | . . . . . . 2 7 Treads 175 | . . . . . 34 141 . Legs 1737 | 1 234 607 262 97 98 176 262 Wheels 591 | . . . . . . . 591 Hover . | . . . . . . . . Flight . | . . . . . . . . Fastest Speed 100 | 120 120 120 190 190 120 120 100 Average Speed 140 | 120 120 134 190 190 172 167 115 Slowest Speed 400 | 120 120 190 190 190 260 400 250 Overloaded Moves . | . . . . . . . . Propulsion Burnouts . | . . . . . . . . Robots Hopped . | . . . . . . . . Cave-ins Triggered . | . . . . . . . . Exploration Rate (%) 40 | 2 55 99 60 31 10 46 19 Regions Visited 7 Branch Regions 3 Pre-discovered Areas 3 | . . 2 1 . . . . Known Exits Taken 2 | . 1 . . . 1 . . Unknown Exits Taken 4 | 1 . 1 1 1 . . . Scrap Searched 2 | . . 1 . 1 . . . Spaces Dug . | . . . . . . . . Terrain Destroyed 75 | . . . . . . 75 . Melee . | . . . . . . . . Projectile . | . . . . . . . . AOE 75 | . . . . . . 75 . Terrain Rammed . | . . . . . . . . Walls Destroyed . | . . . . . . . . Machines Disabled . | . . . . . . . . Actions | -11 -10 -10 -10 -9 -8 -8 -7 --------- Run | Scr Mat Min Exi Min Mat Gar Fac Total 3527 | . 273 676 268 127 274 496 1413 Wait 645 | . 17 30 . 31 96 85 386 Move 2505 | . 233 606 261 96 131 318 860 Hop . | . . . . . . . . Pick Up 41 | . 6 5 3 . 3 7 17 Fast Attach 60 | . 4 1 1 . 4 18 32 Attach 21 | . . . . . 5 10 6 Detach 6 | . . . . . 2 1 3 Swap 22 | . 1 1 . . 7 5 8 Drop 41 | . 6 6 3 . 2 5 19 Fire 125 | . 6 27 . . 17 22 53 Melee 39 | . . . . . . 14 25 Ram . | . . . . . . . . Kick 1 | . . . . . . . 1 Crush 11 | . . . . . . 11 . Escape Stasis . | . . . . . . . . Rewire 10 | . . . . . 7 . 3 Trap . | . . . . . . . . Miscellaneous . | . . . . . . . . Route ------- -11/Scrapyard -10/Materials (discovered 3 exits: [*Mat x2] / *Min) -10/Mines (discovered 3 exits: [*Mat x2] / *Exi) -10/Exiles -9/Mines -8/Materials -8/Garrison -7/Factory History --------- Turn | Location | Event 1 | -11/Scrapyard | Discovered new exit (range 0) 1 | -11/Scrapyard | Entered Materials 91 | -10/Materials | Identified exit to Mines 145 | -10/Materials | Discovered new exit (range 11) 243 | -10/Materials | Discovered new exit (range 15) 311 | -10/Materials | Build established: Mutant 333 | -10/Materials | Entered Mines 374 | -10/Mines | Learned location of Recycling (-7) 502 | -10/Mines | A weapon hastily lodged in a ceiling crevice suddenly fell to the ground 663 | -10/Mines | Discovered new exit (range 5) 664 | -10/Mines | Learned location of Storage (-7) 965 | -10/Mines | Discovered new exit (range 5) 1263 | -10/Mines | Deemed a non-threat by the Exiles lab entrance 1263 | -10/Mines | Discovered new exit (range 5) 1270 | -10/Mines | Entered Exiles 1323 | -10/Exiles | Met 8R-AWN 1348 | -10/Exiles | Met EX-HEX 1405 | -10/Exiles | Met EX-BIN 1428 | -10/Exiles | Aligned with FarCom system 1430 | -10/Exiles | Given EX-Vault access code 1475 | -10/Exiles | Opened EX-Vault 1493 | -10/Exiles | Found Trap Reconfigurator 1530 | -10/Exiles | Warned to stay clear of 0b10 Research branches 1586 | -10/Exiles | Met EX-DEC 1614 | -10/Exiles | Learned location of Zion (-7) 1755 | -10/Exiles | Discovered new exit (range 10) 1770 | -10/Exiles | Left Exiles lab with Trap Reconfigurator 1770 | -10/Exiles | Entered Mines 1955 | -9/Mines | Discovered new exit (range 13) 1984 | -9/Mines | Entered Materials 1984 | -8/Materials | Evolved 4 slots: Propulsion x1, Utility x2, Weapon x1 2373 | -8/Materials | Identified exit to Garrison 2402 | -8/Materials | Build established: Scavenger-Skirmisher 2406 | -8/Materials | Entered Garrison 2646 | -8/Garrison | Lost 7 parts (1n1u5w) 2738 | -8/Garrison | Garrison Relay disabled 2824 | -8/Garrison | Triggered checkpoint 2840 | -8/Garrison | Garrison Relay disabled 2930 | -8/Garrison | Triggered checkpoint 2930 | -8/Garrison | Triggered checkpoint 2938 | -8/Garrison | Core integrity fell below 50% 2960 | -8/Garrison | Triggered checkpoint 3011 | -8/Garrison | Lost 6 parts (1p2n2u1w) 3171 | -8/Garrison | Spotted B-75 Beast 3180 | -8/Garrison | Discovered new exit (range 10) 3200 | -8/Garrison | Installed Relay Interface Framework 3204 | -8/Garrison | Entered Factory 3204 | -7/Factory | Evolved 2 slots: Utility x2 3241 | -7/Factory | Build established: Scavenger-Mutant 3604 | -7/Factory | Build established: Bothacker-Mutant 3875 | -7/Factory | Found Prototype Launcher 3875 | -7/Factory | Identified Rocket Array 3984 | -7/Factory | Identified exit to Garrison 4328 | -7/Factory | Core integrity fell below 50% 4346 | -7/Factory | Core integrity fell below 20% 4347 | -7/Factory | Lost 8 parts (1n3u4w) 4402 | -7/Factory | Lost 3 parts (1p2n) 4856 | -7/Factory | P-70 Sage assimilated allied Guardian 4a 4868 | -7/Factory | Destroyed by P-70 Sage with High-powered Shock Rifle Last Messages --------------- 04589_ Acquired Relay Coupler [Sentry]. 04589_ Guardian 4a reactivates. 04606_ Acquired Hcp. Storage Unit. 04611_ Acquired Gauss Rifle. 04638_ Acquired Hvy. Rocket Launcher. 04643_ Acquired Hvy. Ion Cannon. 04679_ Dropped Insulated Plating. 04683_ Acquired Adv. Targeting Computer. 04780_ Acquired Plasma Cannon. 04788_ ALERT: Rogue bot located, Programmers report to Factory Zone 2A. 04828_ Dropped Insulated Plating. 04829_ Acquired Imp. Light Armor Plating. 04844_ P-60 Hacker destroyed. 04848_ Acquired 37 matter. 04851_ Acquired Mic. Nuclear Core. 04853_ Dropped Insulated Plating. 04854_ Acquired Imp. Heat Sink. 04856_ P-70 Sage hacks Guardian 4a, assimilated. 04861_ Guardian 4a reactivates. 04865_ Slug penetrates P-70 Sage. Map ----- +----------------------------------------------------+ | # + +???????????????????????????? | | # # #???????????????????????????? | | # # #???????????????????????????? | | # # #???????????????????????????? | | # # #???????????????????????????? | | # # #???????????????????????????? | | # # #???????????????????????????? | | ############## #???????????????????????????? | | !#?????????# #???????????????????????????? | | !!#?????????# #????+#?????????????????????? | | #?????????# #???? #?????????????????????? | | #?????????# #???? #??????#??????????????? | | ####?????????# #???? #????? #??????????????? | | ########### ##### ###### #??????????????? | | ##?????????????? | | T#?????????????? | | ??????????????? | | ???????????????? | | w??????????????? | | #??????????????????? | | #??????????????????? | | ####+########## ####??????????????????? | | ### # ! #?????????????????????? | | #?# "" + Y #?????????????????????? | | #?# " """ """ #########p#####?????????????????? | | #?# "F """ """ #???# = @r #?????????????????? | | #???"" """ """ #???# #?????????????????? | | #??? "" "" #???# ! ! ! #?????????????????? | | #??? ? "" "" #???# !! #?????????????????? | | #????? #???###########?????????????????? | | #????? ? #???????????????????????????????? | | #???????? #???????????????????????????????? | | #???????? ?? #???????????????????????????????? | | #????????###?###????????????????????????????????? | | #???????????????????????????????????????????????? | | #???????????????????????????????????????????????? | | #???????????????????????????????????????????????? | | #???????????????????????????????????????????????? | | #???????????????????????????????????????????????? | | #???????????????????????????????????????????????? | | #???????????????????????????????????????????????? | | #???????????????????????????????????????????????? | | #???????????????????????????????????????????????? | | ?????????????????????????????????????????????? | | ????????????????????????????????????????????? | | ???????????????????????????????????????????? | | ??????????????????????????????????????????? | | ???????????????????????????????????????????? | | ######???????????????????????????????????????????? | | ?????????????????????????????????????????????????? | +----------------------------------------------------+ Best States ------------- Heat Dissipation 62 Energy Generation 18 Energy Capacity 290 Matter Stores 300 Matter Capacity 300 Sight Range 16 Terrain Scan Density 10 Armor Coverage 675 Resistance: KI 20 Resistance: EM 15 Propulsion Shielding 33 Evasion (%) 55 Targeting Accuracy 8 Recoil Reduction 3 Offensive Hacking 10 Relay Coupler Types 2 Relay Coupler Value 49 Item Schematics ----------------- None Robot Schematics ------------------ None Fabricated ------------ Nothing Alien Tech Used ----------------- None Achievements -------------- None Challenges ------------ None Game ------ Seed PlasmaRelayShotgun Manual? 0 Play Time 00:39:21 Cumulative 127.3 hours Start 2022.11.18 @ 13:18:11 End 2022.11.18 @ 13:56:13 Sessions 1 Manual Loads 0 Difficulty Rogue Special Mode None Game No. 143 Rogue 143 Adventurer 0 Explorer 0 Win Type - Total 0 Types 0/0/0/0/0/0/0/0/0 Lore% 53 Gallery% 68 Achievement% 53 Wizard Run 0 Options --------- ASCII 0 Keyboard 0 Movement Mouse Keybinds 0 Fullscreen 1 Font 18/SmallcapsGlow Map View 76x50 Tactical HUD 1 Map Filters NONE Filters NONE Steam 1 RUN: f3f80a42-3990-4e94-9ba7-92f707777313